[Event "*** SCC Grand Prix: Titled Tuesday Blitz"]
[Site "Chess.com"]
[Date "2020.07.07"]
[Round "9"]
[White "IngOscarArdila"]
[Black "dianamirza"]
[Result "1-0"]
[WhiteElo "2173"]
[BlackElo "1973"]
[TimeControl "180+1"]
[EndTime "11:42:01 PDT"]
[Termination "IngOscarArdila won by resignation"]

1. d4 {[%clk 0:03:00.9]} 1... Nf6 {[%clk 0:02:58]} 2. c4 {[%clk 0:03:00.9]} 2...
g6 {[%clk 0:02:58.7]} 3. Nc3 {[%clk 0:03:00.9]} 3... Bg7 {[%clk 0:02:59.6]} 4.
e4 {[%clk 0:03:01.2]} 4... d6 {[%clk 0:03:00.5]} 5. Nf3 {[%clk 0:03:01.3]} 5...
O-O {[%clk 0:03:00.8]} 6. Be2 {[%clk 0:03:01.7]} 6... Nc6 {[%clk 0:02:58.8]} 7.
O-O {[%clk 0:03:02.1]} 7... e5 {[%clk 0:02:58]} 8. d5 {[%clk 0:03:02.5]} 8...
Ne7 {[%clk 0:02:58.5]} 9. Bg5 {[%clk 0:03:02.4]} 9... h6 {[%clk 0:02:56.6]} 10.
Bxf6 {[%clk 0:03:02.5]} 10... Bxf6 {[%clk 0:02:56.6]} 11. b4 {[%clk 0:03:02.9]}
11... Bg7 {[%clk 0:02:55.4]} 12. c5 {[%clk 0:03:03]} 12... f5 {[%clk 0:02:55.9]}
13. Nd2 {[%clk 0:03:02.6]} 13... f4 {[%clk 0:02:54.3]} 14. Bg4 {[%clk
0:03:02.1]} 14... g5 {[%clk 0:02:49]} 15. cxd6 {[%clk 0:02:59.6]} 15... Qxd6
{[%clk 0:02:36.1]} 16. Bxc8 {[%clk 0:02:51.2]} 16... Raxc8 {[%clk 0:02:34.3]}
17. Qb3 {[%clk 0:02:51.1]} 17... a6 {[%clk 0:02:32.3]} 18. Nc4 {[%clk
0:02:49.7]} 18... Qg6 {[%clk 0:02:31]} 19. f3 {[%clk 0:02:48.7]} 19... g4 {[%clk
0:02:28.7]} 20. Kh1 {[%clk 0:02:48.8]} 20... g3 {[%clk 0:02:22.4]} 21. h3 {[%clk
0:02:48.3]} 21... c5 {[%clk 0:01:50.4]} 22. dxc6 {[%clk 0:02:43.6]} 22... Nxc6
{[%clk 0:01:48.1]} 23. Nxe5+ {[%clk 0:02:40.5]} 23... Qf7 {[%clk 0:01:40.8]} 24.
Nxf7 {[%clk 0:02:39.8]} 24... Rxf7 {[%clk 0:01:41.7]} 1-0

[Event "*** SCC Grand Prix: Titled Tuesday Blitz"]
[Site "Chess.com"]
[Date "2020.07.07"]
[Round "9"]
[White "Safar_From_Afar"]
[Black "Synctel"]
[Result "1-0"]
[WhiteElo "2154"]
[BlackElo "1928"]
[TimeControl "180+1"]
[EndTime "11:42:28 PDT"]
[Termination "Safar_From_Afar won by resignation"]

1. e4 {[%clk 0:03:00.9]} 1... e6 {[%clk 0:02:58.7]} 2. d4 {[%clk 0:03:00.5]}
2... d5 {[%clk 0:02:58.9]} 3. Nd2 {[%clk 0:03:00.2]} 3... Nc6 {[%clk 0:02:57.5]}
4. Ngf3 {[%clk 0:02:58.9]} 4... Nf6 {[%clk 0:02:54]} 5. e5 {[%clk 0:02:58.7]}
5... Nd7 {[%clk 0:02:54.4]} 6. Bd3 {[%clk 0:02:54.7]} 6... f6 {[%clk 0:02:53.7]}
7. exf6 {[%clk 0:02:52.6]} 7... Qxf6 {[%clk 0:02:54.5]} 8. c3 {[%clk 0:02:49.9]}
8... Bd6 {[%clk 0:02:53.3]} 9. O-O {[%clk 0:02:49]} 9... O-O {[%clk 0:02:53.3]}
10. Nb3 {[%clk 0:02:21.7]} 10... e5 {[%clk 0:02:47.6]} 11. Bg5 {[%clk
0:02:15.9]} 11... Qf7 {[%clk 0:02:46.9]} 12. dxe5 {[%clk 0:02:07.2]} 12... Ndxe5
{[%clk 0:02:47.8]} 13. Nxe5 {[%clk 0:02:05.9]} 13... Nxe5 {[%clk 0:02:45.3]} 14.
Bc2 {[%clk 0:01:55.8]} 14... c6 {[%clk 0:02:33.8]} 15. f4 {[%clk 0:01:52]} 15...
Bc5+ {[%clk 0:01:46.7]} 16. Nxc5 {[%clk 0:01:49]} 1-0

[Event "*** SCC Grand Prix: Titled Tuesday Blitz"]
[Site "Chess.com"]
[Date "2020.07.07"]
[Round "9"]
[White "Chuchofrio1"]
[Black "grandcoach"]
[Result "1-0"]
[WhiteElo "2235"]
[BlackElo "2109"]
[TimeControl "180+1"]
[EndTime "11:42:41 PDT"]
[Termination "Chuchofrio1 won by resignation"]

1. e4 {[%clk 0:03:00.9]} 1... c5 {[%clk 0:02:59.3]} 2. Nc3 {[%clk 0:02:59.4]}
2... Nc6 {[%clk 0:02:59.1]} 3. Bb5 {[%clk 0:02:59.2]} 3... g6 {[%clk 0:02:58]}
4. Bxc6 {[%clk 0:02:58.8]} 4... bxc6 {[%clk 0:02:56.5]} 5. f4 {[%clk 0:02:58.8]}
5... Bg7 {[%clk 0:02:55.8]} 6. Nf3 {[%clk 0:02:59.2]} 6... d6 {[%clk 0:02:50.4]}
7. d3 {[%clk 0:02:59.3]} 7... f5 {[%clk 0:02:45.9]} 8. O-O {[%clk 0:02:58.1]}
8... Nf6 {[%clk 0:02:43.8]} 9. Qe1 {[%clk 0:02:57.7]} 9... O-O {[%clk
0:02:42.6]} 10. e5 {[%clk 0:02:58.1]} 10... Nd5 {[%clk 0:02:40.6]} 11. exd6
{[%clk 0:02:51.6]} 11... exd6 {[%clk 0:02:39.6]} 12. Bd2 {[%clk 0:02:50.7]}
12... Re8 {[%clk 0:02:25.3]} 13. Qg3 {[%clk 0:02:49.5]} 13... Ne3 {[%clk
0:02:21.3]} 14. Bxe3 {[%clk 0:02:45.3]} 14... Rxe3 {[%clk 0:02:22.2]} 15. Rfe1
{[%clk 0:02:46.2]} 15... Qe7 {[%clk 0:02:19.7]} 16. Rxe3 {[%clk 0:02:45.7]}
16... Qxe3+ {[%clk 0:02:20.6]} 17. Kh1 {[%clk 0:02:46]} 17... Rb8 {[%clk
0:01:40.8]} 18. Re1 {[%clk 0:02:44.1]} 18... Qxe1+ {[%clk 0:01:23.6]} 19. Qxe1
{[%clk 0:02:45]} 19... Rxb2 {[%clk 0:01:24.1]} 20. Qe8+ {[%clk 0:02:44.5]} 20...
Bf8 {[%clk 0:01:23.5]} 21. Ng5 {[%clk 0:02:41.8]} 21... Rb7 {[%clk 0:01:11.6]}
22. Qxc8 {[%clk 0:02:39.6]} 22... Re7 {[%clk 0:01:11.7]} 23. Ne6 {[%clk
0:02:39.7]} 1-0

[Event "*** SCC Grand Prix: Titled Tuesday Blitz"]
[Site "Chess.com"]
[Date "2020.07.07"]
[Round "9"]
[White "malakismayil"]
[Black "plumalka"]
[Result "0-1"]
[WhiteElo "2153"]
[BlackElo "2403"]
[TimeControl "180+1"]
[EndTime "11:43:09 PDT"]
[Termination "plumalka won by resignation"]

1. e4 {[%clk 0:03:00.9]} 1... c5 {[%clk 0:03:00.1]} 2. Nf3 {[%clk 0:02:59.7]}
2... d6 {[%clk 0:03:00.5]} 3. d4 {[%clk 0:02:59.2]} 3... cxd4 {[%clk 0:03:01.4]}
4. Nxd4 {[%clk 0:02:59.7]} 4... Nf6 {[%clk 0:03:01.8]} 5. Nc3 {[%clk 0:02:57.5]}
5... Bd7 {[%clk 0:03:01.9]} 6. Bc4 {[%clk 0:02:53.8]} 6... Nc6 {[%clk
0:03:00.2]} 7. Nxc6 {[%clk 0:02:49.5]} 7... Bxc6 {[%clk 0:02:59.7]} 8. Qe2
{[%clk 0:02:49.9]} 8... g6 {[%clk 0:02:57.9]} 9. O-O {[%clk 0:02:49.2]} 9... Bg7
{[%clk 0:02:57.8]} 10. Bg5 {[%clk 0:02:49.3]} 10... O-O {[%clk 0:02:56.7]} 11.
f4 {[%clk 0:02:48.7]} 11... Qb6+ {[%clk 0:02:54.3]} 12. Kh1 {[%clk 0:02:31.6]}
12... Qxb2 {[%clk 0:02:54.2]} 13. Qd3 {[%clk 0:02:12.3]} 13... Ng4 {[%clk
0:02:44.7]} 14. Nd5 {[%clk 0:01:27.3]} 14... Qxa1 {[%clk 0:02:18.6]} 15. Nxe7+
{[%clk 0:01:15.3]} 15... Kh8 {[%clk 0:02:18]} 16. Rxa1 {[%clk 0:01:15.7]} 16...
Nf2+ {[%clk 0:02:17.3]} 17. Kg1 {[%clk 0:01:15.3]} 17... Nxd3 {[%clk 0:02:18.1]}
18. Rd1 {[%clk 0:01:10.7]} 18... Nc5 {[%clk 0:02:13.4]} 19. Nxc6 {[%clk
0:01:06.9]} 19... bxc6 {[%clk 0:02:14.3]} 20. Rxd6 {[%clk 0:01:06.8]} 20... Nxe4
{[%clk 0:02:14.5]} 21. Rxc6 {[%clk 0:01:04.9]} 21... Nxg5 {[%clk 0:02:14.1]} 22.
fxg5 {[%clk 0:01:05.8]} 22... Rfc8 {[%clk 0:02:13.3]} 23. Rxc8+ {[%clk
0:01:05.2]} 23... Rxc8 {[%clk 0:02:14.2]} 24. Bxf7 {[%clk 0:01:05.7]} 24... Rxc2
{[%clk 0:02:13.3]} 0-1

[Event "*** SCC Grand Prix: Titled Tuesday Blitz"]
[Site "Chess.com"]
[Date "2020.07.07"]
[Round "9"]
[White "Quiet_Desperation"]
[Black "ega2006"]
[Result "0-1"]
[WhiteElo "2221"]
[BlackElo "2358"]
[TimeControl "180+1"]
[EndTime "11:43:09 PDT"]
[Termination "ega2006 won by resignation"]

1. d4 {[%clk 0:03:00.9]} 1... Nf6 {[%clk 0:02:59.5]} 2. Nf3 {[%clk 0:02:59.8]}
2... c5 {[%clk 0:03:00.1]} 3. Nc3 {[%clk 0:02:57.6]} 3... cxd4 {[%clk
0:02:57.8]} 4. Nxd4 {[%clk 0:02:58.5]} 4... Nc6 {[%clk 0:02:51.2]} 5. e4 {[%clk
0:02:57.8]} 5... g6 {[%clk 0:02:48.7]} 6. Be3 {[%clk 0:02:53.8]} 6... Bg7 {[%clk
0:02:48.8]} 7. Bc4 {[%clk 0:02:54]} 7... O-O {[%clk 0:02:48.3]} 8. f3 {[%clk
0:02:54.5]} 8... Qb6 {[%clk 0:02:44.4]} 9. Bb3 {[%clk 0:02:48]} 9... Nxe4 {[%clk
0:02:35.5]} 10. Nd5 {[%clk 0:02:48.1]} 10... Qc5 {[%clk 0:02:26.8]} 11. c3
{[%clk 0:02:24.3]} 11... Nxd4 {[%clk 0:02:18.3]} 12. cxd4 {[%clk 0:02:21.8]}
12... Qa5+ {[%clk 0:02:17.8]} 13. Kf1 {[%clk 0:02:16.8]} 13... Nf6 {[%clk
0:02:06.9]} 14. Nxe7+ {[%clk 0:02:15.6]} 14... Kh8 {[%clk 0:02:06.8]} 15. Kg1
{[%clk 0:02:05.5]} 15... Re8 {[%clk 0:02:04.2]} 16. Nxc8 {[%clk 0:02:00.4]}
16... Raxc8 {[%clk 0:01:54]} 17. Qd2 {[%clk 0:01:55.4]} 17... Qb6 {[%clk
0:01:38]} 18. Kf2 {[%clk 0:01:44.8]} 18... Ng4+ {[%clk 0:01:27]} 19. fxg4 {[%clk
0:01:43.9]} 19... Rxe3 {[%clk 0:01:26.9]} 20. Kxe3 {[%clk 0:01:40.4]} 20... Bh6+
{[%clk 0:01:26]} 0-1

[Event "*** SCC Grand Prix: Titled Tuesday Blitz"]
[Site "Chess.com"]
[Date "2020.07.07"]
[Round "9"]
[White "imdarealist"]
[Black "EfM13"]
[Result "0-1"]
[WhiteElo "2327"]
[BlackElo "2218"]
[TimeControl "180+1"]
[EndTime "11:43:17 PDT"]
[Termination "EfM13 won by resignation"]

1. d4 {[%clk 0:03:00.9]} 1... d6 {[%clk 0:02:59.2]} 2. e4 {[%clk 0:02:59.8]}
2... g6 {[%clk 0:02:56.4]} 3. Nf3 {[%clk 0:02:59.9]} 3... Bg7 {[%clk 0:02:56.4]}
4. c3 {[%clk 0:03:00.3]} 4... Nf6 {[%clk 0:02:55]} 5. Bd3 {[%clk 0:03:00.5]}
5... O-O {[%clk 0:02:55]} 6. Bg5 {[%clk 0:02:59.2]} 6... h6 {[%clk 0:02:53.5]}
7. Bh4 {[%clk 0:02:58.3]} 7... Nbd7 {[%clk 0:02:54]} 8. O-O {[%clk 0:02:56.9]}
8... c5 {[%clk 0:02:53.8]} 9. Nbd2 {[%clk 0:02:54.8]} 9... cxd4 {[%clk
0:02:52.5]} 10. Nxd4 {[%clk 0:02:55.7]} 10... Nc5 {[%clk 0:02:51.3]} 11. Bc2
{[%clk 0:02:55]} 11... b6 {[%clk 0:02:49.1]} 12. Re1 {[%clk 0:02:54.2]} 12... e5
{[%clk 0:02:33]} 13. N4f3 {[%clk 0:02:32.7]} 13... Bb7 {[%clk 0:02:30]} 14. b4
{[%clk 0:02:10]} 14... Ne6 {[%clk 0:02:27.3]} 15. Nc4 {[%clk 0:02:10.4]} 15...
Qc7 {[%clk 0:02:21.3]} 16. Nxd6 {[%clk 0:02:09]} 16... Rad8 {[%clk 0:02:20.9]}
17. Nb5 {[%clk 0:02:00.9]} 17... Rxd1 {[%clk 0:02:20]} 18. Nxc7 {[%clk
0:01:59.1]} 18... Rxe1+ {[%clk 0:02:20.4]} 19. Rxe1 {[%clk 0:01:56.1]} 19...
Nxc7 {[%clk 0:02:21.3]} 20. Nxe5 {[%clk 0:01:56.4]} 20... Re8 {[%clk 0:02:19.5]}
21. Nc4 {[%clk 0:01:52.2]} 21... Nxe4 {[%clk 0:02:18.3]} 22. f3 {[%clk
0:01:02.7]} 22... Nxc3 {[%clk 0:02:16]} 23. Rc1 {[%clk 0:00:56]} 23... Ne2+
{[%clk 0:02:13.5]} 0-1

[Event "*** SCC Grand Prix: Titled Tuesday Blitz"]
[Site "Chess.com"]
[Date "2020.07.07"]
[Round "9"]
[White "Savva09022009"]
[Black "saraswathii"]
[Result "1-0"]
[WhiteElo "2464"]
[BlackElo "2351"]
[TimeControl "180+1"]
[EndTime "11:43:23 PDT"]
[Termination "Savva09022009 won by resignation"]

1. d4 {[%clk 0:02:53]} 1... Nf6 {[%clk 0:02:59.2]} 2. Nc3 {[%clk 0:02:45.2]}
2... d5 {[%clk 0:02:58.6]} 3. Bf4 {[%clk 0:02:45.1]} 3... Bf5 {[%clk 0:02:58.4]}
4. e3 {[%clk 0:02:44.9]} 4... c6 {[%clk 0:02:58.5]} 5. f3 {[%clk 0:02:45.1]}
5... e6 {[%clk 0:02:58.3]} 6. g4 {[%clk 0:02:44.4]} 6... Bg6 {[%clk 0:02:58]} 7.
h4 {[%clk 0:02:42.8]} 7... h6 {[%clk 0:02:55.8]} 8. Bd3 {[%clk 0:02:40.9]} 8...
Bxd3 {[%clk 0:02:54.5]} 9. Qxd3 {[%clk 0:02:41.3]} 9... Bd6 {[%clk 0:02:54.9]}
10. Nge2 {[%clk 0:02:40.8]} 10... Na6 {[%clk 0:02:51.2]} 11. O-O-O {[%clk
0:02:39.4]} 11... Bxf4 {[%clk 0:02:45.4]} 12. Nxf4 {[%clk 0:02:38.6]} 12... Qa5
{[%clk 0:02:45]} 13. Kb1 {[%clk 0:02:37.6]} 13... O-O-O {[%clk 0:02:43.8]} 14.
g5 {[%clk 0:02:36.4]} 14... Nd7 {[%clk 0:02:41.9]} 15. g6 {[%clk 0:02:36]} 15...
e5 {[%clk 0:02:39]} 16. dxe5 {[%clk 0:02:32.6]} 16... fxg6 {[%clk 0:02:36.9]}
17. Nxg6 {[%clk 0:02:31.3]} 17... Rhe8 {[%clk 0:02:33.9]} 18. Qf5 {[%clk
0:02:31.1]} 18... Kb8 {[%clk 0:02:27.4]} 19. e6 {[%clk 0:02:30.2]} 19... Ndc5
{[%clk 0:02:26.1]} 20. e7 {[%clk 0:02:24.8]} 20... Rd6 {[%clk 0:02:16.2]} 21.
Qf7 {[%clk 0:02:24.6]} 21... Nc7 {[%clk 0:02:13.9]} 22. Qxg7 {[%clk 0:02:08.8]}
22... Qb6 {[%clk 0:02:04.8]} 23. e4 {[%clk 0:02:00.8]} 23... d4 {[%clk
0:01:55.2]} 24. Rxd4 {[%clk 0:01:54.2]} 24... N7e6 {[%clk 0:01:25.1]} 25. Qe5
{[%clk 0:01:49.8]} 1-0

[Event "*** SCC Grand Prix: Titled Tuesday Blitz"]
[Site "Chess.com"]
[Date "2020.07.07"]
[Round "9"]
[White "Mbneu"]
[Black "Gandrade2"]
[Result "0-1"]
[WhiteElo "2220"]
[BlackElo "2126"]
[TimeControl "180+1"]
[EndTime "11:43:34 PDT"]
[Termination "Gandrade2 won by resignation"]

1. d4 {[%clk 0:01:22.4]} 1... Nf6 {[%clk 0:02:58.7]} 2. c4 {[%clk 0:01:21.5]}
2... g6 {[%clk 0:02:58.5]} 3. Nc3 {[%clk 0:01:21.8]} 3... Bg7 {[%clk 0:02:57.9]}
4. e4 {[%clk 0:01:21.1]} 4... d6 {[%clk 0:02:58.3]} 5. f4 {[%clk 0:01:21.6]}
5... c5 {[%clk 0:02:44.2]} 6. d5 {[%clk 0:01:20.4]} 6... O-O {[%clk 0:02:40.1]}
7. Nf3 {[%clk 0:01:21]} 7... e6 {[%clk 0:02:39.6]} 8. Be2 {[%clk 0:01:21.6]}
8... exd5 {[%clk 0:02:39.4]} 9. cxd5 {[%clk 0:01:22.5]} 9... Nbd7 {[%clk
0:02:33.3]} 10. O-O {[%clk 0:01:21.6]} 10... Re8 {[%clk 0:02:30]} 11. Nd2 {[%clk
0:01:22.2]} 11... a6 {[%clk 0:02:16.5]} 12. a4 {[%clk 0:01:19.3]} 12... Qc7
{[%clk 0:02:10.9]} 13. Kh1 {[%clk 0:01:18.4]} 13... Rb8 {[%clk 0:02:02.8]} 14.
Nc4 {[%clk 0:01:14.9]} 14... Nxe4 {[%clk 0:01:57.4]} 15. Nxe4 {[%clk 0:01:10.7]}
15... Rxe4 {[%clk 0:01:56.9]} 16. Bd3 {[%clk 0:01:11.3]} 16... Re8 {[%clk
0:01:52]} 17. f5 {[%clk 0:01:11.5]} 17... Ne5 {[%clk 0:01:46.6]} 18. fxg6 {[%clk
0:01:08.3]} 18... hxg6 {[%clk 0:01:44.5]} 19. Bg5 {[%clk 0:01:02.3]} 19... Nxd3
{[%clk 0:01:40.1]} 20. Qd2 {[%clk 0:01:01.6]} 0-1

[Event "*** SCC Grand Prix: Titled Tuesday Blitz"]
[Site "Chess.com"]
[Date "2020.07.07"]
[Round "9"]
[White "IwkooO"]
[Black "Ave_Mariia"]
[Result "0-1"]
[WhiteElo "2575"]
[BlackElo "2387"]
[TimeControl "180+1"]
[EndTime "11:43:49 PDT"]
[Termination "Ave_Mariia won by resignation"]

1. e4 {[%clk 0:03:00.9]} 1... c5 {[%clk 0:02:58.9]} 2. Nf3 {[%clk 0:02:58.7]}
2... d6 {[%clk 0:02:59.1]} 3. d4 {[%clk 0:02:59.3]} 3... cxd4 {[%clk 0:02:59.8]}
4. Nxd4 {[%clk 0:02:59.3]} 4... Nf6 {[%clk 0:03:00.5]} 5. Nc3 {[%clk 0:02:59.9]}
5... g6 {[%clk 0:03:01.1]} 6. Be3 {[%clk 0:02:59]} 6... Bg7 {[%clk 0:03:01.4]}
7. Bc4 {[%clk 0:02:59.5]} 7... Nc6 {[%clk 0:02:56.5]} 8. f3 {[%clk 0:02:56.7]}
8... O-O {[%clk 0:02:56]} 9. Bb3 {[%clk 0:02:56.7]} 9... Bd7 {[%clk 0:02:54.6]}
10. Qd2 {[%clk 0:02:57]} 10... Rc8 {[%clk 0:02:53.6]} 11. O-O-O {[%clk
0:02:57.6]} 11... Nxd4 {[%clk 0:02:49.6]} 12. Bxd4 {[%clk 0:02:57.5]} 12... b5
{[%clk 0:02:49.9]} 13. g4 {[%clk 0:02:57.3]} 13... a5 {[%clk 0:02:45.6]} 14. a3
{[%clk 0:02:51.5]} 14... b4 {[%clk 0:02:23.8]} 15. axb4 {[%clk 0:02:51.5]} 15...
axb4 {[%clk 0:02:23.6]} 16. Nb1 {[%clk 0:02:52]} 16... Qa5 {[%clk 0:02:15.8]}
17. h4 {[%clk 0:02:52]} 17... Ba4 {[%clk 0:02:12.6]} 18. Qd3 {[%clk 0:02:45]}
18... Nxg4 {[%clk 0:02:03.1]} 19. Bxa4 {[%clk 0:02:02]} 19... Qxa4 {[%clk
0:01:54.9]} 20. b3 {[%clk 0:01:42.6]} 20... Qa2 {[%clk 0:01:49.4]} 21. Bxg7
{[%clk 0:01:24.3]} 21... Nf2 {[%clk 0:01:46.6]} 22. Qd2 {[%clk 0:01:23.6]} 22...
Nxd1 {[%clk 0:01:45.2]} 23. Rxd1 {[%clk 0:01:24.5]} 23... Kxg7 {[%clk 0:01:43]}
24. h5 {[%clk 0:01:25.4]} 24... Rc5 {[%clk 0:01:33.6]} 25. Rh1 {[%clk
0:01:23.3]} 25... Rfc8 {[%clk 0:01:30.9]} 26. Rh2 {[%clk 0:01:20.3]} 26... Rxc2+
{[%clk 0:01:25.9]} 27. Qxc2 {[%clk 0:01:20.6]} 27... Rxc2+ {[%clk 0:01:26.8]}
28. Rxc2 {[%clk 0:01:18.9]} 28... Qxb3 {[%clk 0:01:26.6]} 0-1

[Event "*** SCC Grand Prix: Titled Tuesday Blitz"]
[Site "Chess.com"]
[Date "2020.07.07"]
[Round "9"]
[White "StephenDedalus83"]
[Black "fmshawnrl123"]
[Result "1-0"]
[WhiteElo "2814"]
[BlackElo "2653"]
[TimeControl "180+1"]
[EndTime "11:43:54 PDT"]
[Termination "StephenDedalus83 won by resignation"]

1. e4 {[%clk 0:03:00.9]} 1... c6 {[%clk 0:03:00]} 2. d4 {[%clk 0:02:59.9]} 2...
d5 {[%clk 0:03:00.9]} 3. e5 {[%clk 0:02:59]} 3... Bf5 {[%clk 0:03:00.8]} 4. c3
{[%clk 0:02:59]} 4... e6 {[%clk 0:03:00.7]} 5. Be3 {[%clk 0:02:59.6]} 5... Ne7
{[%clk 0:02:59.1]} 6. Nd2 {[%clk 0:03:00]} 6... Bg6 {[%clk 0:02:58.8]} 7. f4
{[%clk 0:02:59.7]} 7... Nf5 {[%clk 0:02:58.2]} 8. Bf2 {[%clk 0:02:59.8]} 8... h5
{[%clk 0:02:59.1]} 9. Ngf3 {[%clk 0:02:59.1]} 9... a6 {[%clk 0:02:58.2]} 10. Be2
{[%clk 0:02:58.6]} 10... Nd7 {[%clk 0:02:57.7]} 11. O-O {[%clk 0:02:54.7]} 11...
c5 {[%clk 0:02:57.1]} 12. g3 {[%clk 0:02:54.6]} 12... Be7 {[%clk 0:02:56.5]} 13.
h3 {[%clk 0:02:53.9]} 13... Rc8 {[%clk 0:02:56.4]} 14. Kg2 {[%clk 0:02:49.9]}
14... cxd4 {[%clk 0:02:44.3]} 15. cxd4 {[%clk 0:02:49.1]} 15... Rc2 {[%clk
0:02:43.5]} 16. g4 {[%clk 0:02:43.8]} 16... hxg4 {[%clk 0:02:40.9]} 17. hxg4
{[%clk 0:02:43.3]} 17... Nh4+ {[%clk 0:02:39.1]} 18. Bxh4 {[%clk 0:02:41.5]}
18... Bxh4 {[%clk 0:02:40]} 19. f5 {[%clk 0:02:23.3]} 19... exf5 {[%clk
0:02:37.2]} 20. Qxc2 {[%clk 0:02:22.5]} 20... fxg4 {[%clk 0:02:37.5]} 21. Bd3
{[%clk 0:02:16.9]} 21... gxf3+ {[%clk 0:02:36.9]} 22. Nxf3 {[%clk 0:02:16.8]}
22... Rh6 {[%clk 0:02:36.4]} 23. Rh1 {[%clk 0:02:13.8]} 23... Bxd3 {[%clk
0:02:29.5]} 24. Qxd3 {[%clk 0:02:12.7]} 24... Rg6+ {[%clk 0:02:30.4]} 25. Kf1
{[%clk 0:02:12.4]} 25... Be7 {[%clk 0:02:26.8]} 26. Rh8+ {[%clk 0:02:09.2]}
26... Bf8 {[%clk 0:02:26.8]} 27. Rc1 {[%clk 0:02:05.7]} 27... Rg3 {[%clk
0:01:28.7]} 28. Kf2 {[%clk 0:02:04.1]} 28... Rg4 {[%clk 0:01:28.5]} 29. Qb3
{[%clk 0:02:03]} 29... Nb6 {[%clk 0:01:05.1]} 30. Qb4 {[%clk 0:01:59.4]} 30...
Nd7 {[%clk 0:01:05.3]} 31. Qxb7 {[%clk 0:01:58.3]} 31... Qa5 {[%clk 0:00:57.4]}
32. Rc8+ {[%clk 0:01:57.8]} 32... Ke7 {[%clk 0:00:57.7]} 33. Rhxf8 {[%clk
0:01:57]} 1-0

[Event "*** SCC Grand Prix: Titled Tuesday Blitz"]
[Site "Chess.com"]
[Date "2020.07.07"]
[Round "9"]
[White "PotapovaM"]
[Black "Caterpiller35"]
[Result "0-1"]
[WhiteElo "2483"]
[BlackElo "2390"]
[TimeControl "180+1"]
[EndTime "11:44:07 PDT"]
[Termination "Caterpiller35 won by resignation"]

1. d4 {[%clk 0:03:00.9]} 1... Nf6 {[%clk 0:03:00]} 2. c4 {[%clk 0:03:00.5]} 2...
e6 {[%clk 0:03:00.3]} 3. Nf3 {[%clk 0:03:00.8]} 3... Bb4+ {[%clk 0:03:00.6]} 4.
Nbd2 {[%clk 0:03:00.6]} 4... O-O {[%clk 0:03:00.3]} 5. a3 {[%clk 0:03:01.2]}
5... Be7 {[%clk 0:03:00.4]} 6. e4 {[%clk 0:03:01.2]} 6... d5 {[%clk 0:03:00.6]}
7. e5 {[%clk 0:03:01.3]} 7... Nfd7 {[%clk 0:03:00.8]} 8. Bd3 {[%clk 0:03:01.9]}
8... c5 {[%clk 0:03:01]} 9. h4 {[%clk 0:03:02.6]} 9... g6 {[%clk 0:02:58.6]} 10.
h5 {[%clk 0:02:57.9]} 10... Nc6 {[%clk 0:02:55.8]} 11. cxd5 {[%clk 0:02:48.8]}
11... exd5 {[%clk 0:02:54.4]} 12. Qe2 {[%clk 0:02:49.4]} 12... cxd4 {[%clk
0:02:49]} 13. Nb3 {[%clk 0:02:48.9]} 13... Qb6 {[%clk 0:02:42.9]} 14. hxg6
{[%clk 0:02:33.3]} 14... fxg6 {[%clk 0:02:34.9]} 15. Rxh7 {[%clk 0:01:19.8]}
15... Qxb3 {[%clk 0:01:55.9]} 16. Qd2 {[%clk 0:01:17]} 16... Ndxe5 {[%clk
0:01:29.7]} 17. Qh6 {[%clk 0:01:03.4]} 17... Nxd3+ {[%clk 0:01:15.8]} 18. Kf1
{[%clk 0:01:03]} 18... Qd1+ {[%clk 0:01:14.4]} 0-1

[Event "*** SCC Grand Prix: Titled Tuesday Blitz"]
[Site "Chess.com"]
[Date "2020.07.07"]
[Round "9"]
[White "ErikRonka"]
[Black "S-Fazulyanov"]
[Result "0-1"]
[WhiteElo "2389"]
[BlackElo "2536"]
[TimeControl "180+1"]
[EndTime "11:44:10 PDT"]
[Termination "S-Fazulyanov won by resignation"]

1. d4 {[%clk 0:03:00.9]} 1... d5 {[%clk 0:03:00.2]} 2. c4 {[%clk 0:02:57]} 2...
e6 {[%clk 0:02:59.9]} 3. Nc3 {[%clk 0:02:54.1]} 3... Nf6 {[%clk 0:02:58.7]} 4.
Nf3 {[%clk 0:02:48.8]} 4... Nbd7 {[%clk 0:02:57.5]} 5. Bg5 {[%clk 0:02:46.6]}
5... Be7 {[%clk 0:02:57.5]} 6. e3 {[%clk 0:02:46.3]} 6... O-O {[%clk 0:02:57.1]}
7. Bd3 {[%clk 0:02:37.7]} 7... Re8 {[%clk 0:02:57.3]} 8. O-O {[%clk 0:02:36.7]}
8... Nf8 {[%clk 0:02:56]} 9. Bxf6 {[%clk 0:02:26]} 9... Bxf6 {[%clk 0:02:55.7]}
10. b4 {[%clk 0:02:26.6]} 10... c6 {[%clk 0:02:49.8]} 11. a4 {[%clk 0:02:23.4]}
11... Bd7 {[%clk 0:02:41.7]} 12. e4 {[%clk 0:02:11.1]} 12... dxe4 {[%clk
0:02:38.4]} 13. Nxe4 {[%clk 0:02:09.8]} 13... Be7 {[%clk 0:02:38.9]} 14. Qb3
{[%clk 0:02:07.2]} 14... Qc7 {[%clk 0:02:36.4]} 15. Rfe1 {[%clk 0:01:42.9]}
15... Rad8 {[%clk 0:02:34.2]} 16. Rad1 {[%clk 0:01:43.3]} 16... Ng6 {[%clk
0:02:34]} 17. g3 {[%clk 0:01:42.6]} 17... Bc8 {[%clk 0:02:30.4]} 18. Bb1 {[%clk
0:01:42]} 18... Qb6 {[%clk 0:01:58.1]} 19. h4 {[%clk 0:01:33.5]} 19... Qxb4
{[%clk 0:01:55.4]} 20. Qxb4 {[%clk 0:01:27.7]} 20... Bxb4 {[%clk 0:01:56.3]} 21.
Re3 {[%clk 0:01:28.4]} 21... e5 {[%clk 0:01:45.2]} 22. d5 {[%clk 0:01:25.6]}
22... cxd5 {[%clk 0:01:42]} 23. cxd5 {[%clk 0:01:26.5]} 23... Bg4 {[%clk
0:01:42]} 24. Rdd3 {[%clk 0:01:17]} 24... Rd7 {[%clk 0:01:32.9]} 25. Rb3 {[%clk
0:01:14.9]} 25... a5 {[%clk 0:01:32.4]} 26. Nfd2 {[%clk 0:01:06.8]} 26... Rxd5
{[%clk 0:01:27.4]} 27. Nc4 {[%clk 0:01:07]} 27... Be6 {[%clk 0:01:25.7]} 28. Rb2
{[%clk 0:01:03.2]} 28... Rd1+ {[%clk 0:01:25]} 0-1